Workbook

Sheet Kurzanleitung
I3: AUSWERTUNG SPIELLEITUNG
C4: KURZANLEITUNG
C6: ANMERKUNG: | F6: Die Arbeit mit dem Computer und/oder den ausgedruckten Dokumenten «Monatliches Haushaltsbudget» und «Haushaltsbudget im
F7: Vergleich» wird empfohlen, ist allerdings nicht zwingend.
C9: «Monatliches Haushaltsbudget» | H9: Mit diesem Register wird das monatliche Hashaltsbudget dargstellt und kann mit den durchschnittlichen
H10: Ausgaben eines schweizerischen Haushalts verglichen werden.
H11: 1. Tragen Sie in den grünen Spalten ihre Vorschläge über die Ausgabenverteilung Ihres zugewiesenen Haushalts ein.
H12: 2. In den grauen Spalten stehen als Vergleichswert die durchschnittlichen Ausgaben des jeweiligen schweizerischen
H13: Haushalts. Wählen Sie in der Dropdown-Liste das gewünschte Haushaltsprofil aus.
H14: 3. Der Prozentsatz unter «Übereinstimmung» zeigt auf, wie sehr Ihr Vorschlag mit dem schweizerischen
H15: Durchschnitt übereinstimmt.
C17: «Haushaltsbudget im Vergleich» | H17: Dieses Register vergleicht die Verteilung der Ausgaben pro Budgetposten von zwei verschiedenen
H18: Haushaltsprofilen. Konkret werden die Einnahmen, Ausgaben (Steuern, Gesundheit, etc.) sowie der Restbetrag
H19: (Sparen/Schulden) miteinander verglichen. Um ein Haushaltsprofil auszuwählen, klicken Sie auf das
H20: entsprechende Schaltfeld neben «Budget 1» bzw. «Budget 2» und suchen Sie das gewünschte Profil in der
H21: Dropdown-Liste.
C23: «Monatliches Haushaltsbudget_p» | H23: Dieses Register kommt als ausgedrucktes Dokument zum Einsatz. In den grünen Spalten können Sie Ihre
H24: Vorschläge für die Budgetplanung Ihres zugewiesenen Haushalts machen.
C26: «Haushaltsbudget im Vergleich_p» | H26: Dieses Register kommt als ausgedrucktes Dokument zum Einsatz. Es gewährt einen Überblick über die
H27: Einkommensströme, Ausgabenstruktur sowie die Restbeträge der 10 Haushaltsprofile.

Sheet Monatliches Haushaltsbudget
D3: Vorschlag | G3: Schweizer Durchschnitt | K3: Übereinstimmung
D4: Lernende | G4: Bundesamt für Statistik | K4: =1-SUM(I10:I31) -> 1
A7: Einnahmen | C7: =Daten!$B$12 -> Verfügbares Einkommen | E7: =IF($D$7,SUM(D7)/$D$7,0) -> 0 | G7: =INDEX(Daten!$D12:$N12,1,Daten!$A$56) -> 0 | H7: =IF($G$7,SUM(G7:G7)/$G$7,0) -> 0
B8: =Daten!$A13 -> 0
B9: =Daten!$A9 -> 0
A10: Ausgaben | B10: =Daten!$A15 -> 1 | C10: =Daten!$B15 -> Steuern | E10: =IF($D$7,SUM(D10)/$D$7,0) -> 0 | G10: =ABS(INDEX(Daten!$D15:$N15,1,Daten!$A$56)) -> 0 | H10: =IF($G$7,SUM(G10:G10)/$G$7,0) -> 0 | I10: =ABS(H10-E10) -> 0 | J10: Steuern für Bund, Kanton und Gemeinde, amtliche Gebühren
B11: =Daten!$A16 -> 0 | C11: =Daten!$B16 -> 0
B12: =Daten!$A17 -> 2 | C12: =Daten!$B17 -> Gesundheit | E12: =IF($D$7,SUM(D12)/$D$7,0) -> 0 | G12: =ABS(INDEX(Daten!$D17:$N17,1,Daten!$A$56)) -> 0 | H12: =IF($G$7,SUM(G12:G12)/$G$7,0) -> 0 | I12: =ABS(H12-E12) -> 0 | J12: Krankenkassenprämien, Arztbesuche, Medikamente
B13: =Daten!$A18 -> 0 | C13: =Daten!$B18 -> 0
B14: =Daten!$A19 -> 3 | C14: =Daten!$B19 -> Unterstützungen & Geschenke | E14: =IF($D$7,SUM(D14)/$D$7,0) -> 0 | G14: =ABS(INDEX(Daten!$D19:$N19,1,Daten!$A$56)) -> 0 | H14: =IF($G$7,SUM(G14:G14)/$G$7,0) -> 0 | I14: =ABS(H14-E14) -> 0 | J14: Einladungen, Spenden, Alimente, Unterstützungsbeiträge
B15: =Daten!$A20 -> 0 | C15: =Daten!$B20 -> 0
B16: =Daten!$A21 -> 4 | C16: =Daten!$B21 -> Wohnen | E16: =IF($D$7,SUM(D16)/$D$7,0) -> 0 | G16: =ABS(INDEX(Daten!$D21:$N21,1,Daten!$A$56)) -> 0 | H16: =IF($G$7,SUM(G16:G16)/$G$7,0) -> 0 | I16: =ABS(H16-E16) -> 0 | J16: Wohnung, Energie
B17: =Daten!$A22 -> 0 | C17: =Daten!$B22 -> 0
B18: =Daten!$A23 -> 5 | C18: =Daten!$B23 -> Ernährung | E18: =IF($D$7,SUM(D18)/$D$7,0) -> 0 | G18: =ABS(INDEX(Daten!$D23:$N23,1,Daten!$A$56)) -> 0 | H18: =IF($G$7,SUM(G18:G18)/$G$7,0) -> 0 | I18: =ABS(H18-E18) -> 0 | J18: Essen, Trinken
B19: =Daten!$A24 -> 0 | C19: =Daten!$B24 -> 0
B20: =Daten!$A25 -> 6 | C20: =Daten!$B25 -> Bekleidung & Körperpflege | E20: =IF($D$7,SUM(D20)/$D$7,0) -> 0 | G20: =ABS(INDEX(Daten!$D25:$N25,1,Daten!$A$56)) -> 0 | H20: =IF($G$7,SUM(G20:G20)/$G$7,0) -> 0 | I20: =ABS(H20-E20) -> 0 | J20: Kleidung, Schuhe, Hygieneprodukte, Coiffeur
B21: =Daten!$A26 -> 0 | C21: =Daten!$B26 -> 0
B22: =Daten!$A27 -> 7 | C22: =Daten!$B27 -> Haushalt & Lebensversicherung | E22: =IF($D$7,SUM(D22)/$D$7,0) -> 0 | G22: =ABS(INDEX(Daten!$D27:$N27,1,Daten!$A$56)) -> 0 | H22: =IF($G$7,SUM(G22:G22)/$G$7,0) -> 0 | I22: =ABS(H22-E22) -> 0 | J22: Einrichtung, Haushaltsführung, Versicherungen
B23: =Daten!$A28 -> 0 | C23: =Daten!$B28 -> 0
B24: =Daten!$A29 -> 8 | C24: =Daten!$B29 -> Mobilität | E24: =IF($D$7,SUM(D24)/$D$7,0) -> 0 | G24: =ABS(INDEX(Daten!$D29:$N29,1,Daten!$A$56)) -> 0 | H24: =IF($G$7,SUM(G24:G24)/$G$7,0) -> 0 | I24: =ABS(H24-E24) -> 0 | J24: Individueller und öffentlicher Verkehr
B25: =Daten!$A30 -> 0 | C25: =Daten!$B30 -> 0
B26: =Daten!$A31 -> 9 | C26: =Daten!$B31 -> Kommunikation & Elektronik | E26: =IF($D$7,SUM(D26)/$D$7,0) -> 0 | G26: =ABS(INDEX(Daten!$D31:$N31,1,Daten!$A$56)) -> 0 | H26: =IF($G$7,SUM(G26:G26)/$G$7,0) -> 0 | I26: =ABS(H26-E26) -> 0 | J26: Telefonie, Internet, TV, Computer
B27: =Daten!$A32 -> 0 | C27: =Daten!$B32 -> 0
B28: =Daten!$A33 -> 10 | C28: =Daten!$B33 -> Freizeit & Bildung | E28: =IF($D$7,SUM(D28)/$D$7,0) -> 0 | G28: =ABS(INDEX(Daten!$D33:$N33,1,Daten!$A$56)) -> 0 | H28: =IF($G$7,SUM(G28:G28)/$G$7,0) -> 0 | I28: =ABS(H28-E28) -> 0 | J28: Ausgang, Ferien, Hobbys, Bildung
B29: =Daten!$A34 -> 0
B30: =Daten!$A35 -> 0
A31: Restbetrag | C31: Sparen/Schulden | D31: =D7-SUM(D10:D28) -> 0 | E31: =IF($D$7,SUM(D31)/$D$7,0) -> 0 | G31: =INDEX(Daten!$D36:$N36,1,Daten!$A$56) -> 0 | H31: =IF($G$7,SUM(G31:G31)/$G$7,0) -> 0 | I31: =ABS(H31-E31) -> 0

Sheet Haushaltsbudgets im Vergleich
D3: Schweizer Durchschnitt
D4: Bundesamt für Statistik
B7: Budget 1 | K7: Einnahmen | M7: =INDEX(Daten!$D12:$N12,1,Daten!$A$58) -> 2780 | P7: Restbetrag | S7: =INDEX(Daten!$D36:$N36,1,Daten!$A$58) -> -730
B9: Budget 2 | M9: =INDEX(Daten!$D12:$N12,1,Daten!$A$59) -> 5820 | S9: =INDEX(Daten!$D36:$N36,1,Daten!$A$59) -> 750
B11: =Daten!$A9 -> 0
A12: Ausgaben
C15: 1 Steuern | G15: 2 Gesundheit | K15: 3 Unterstützungen & Geschenke | O15: 4 Wohnen | S15: 5 Ernährung
C16: ((Icon)) | G16: ((Icon)) | K16: ((Icon)) | O16: ((Icon)) | S16: ((Icon))
C17: =INDEX(Daten!$D15:$N15,1,Daten!$A$58) -> -290 | G17: =INDEX(Daten!$D17:$N17,1,Daten!$A$58) -> -520 | K17: =INDEX(Daten!$D19:$N19,1,Daten!$A$58) -> -130 | O17: =INDEX(Daten!$D21:$N21,1,Daten!$A$58) -> -1040 | S17: =INDEX(Daten!$D23:$N23,1,Daten!$A$58) -> -320
C19: =INDEX(Daten!$D15:$N15,1,Daten!$A$59) -> -640 | G19: =INDEX(Daten!$D17:$N17,1,Daten!$A$59) -> -490 | K19: =INDEX(Daten!$D19:$N19,1,Daten!$A$59) -> -290 | O19: =INDEX(Daten!$D21:$N21,1,Daten!$A$59) -> -1240 | S19: =INDEX(Daten!$D23:$N23,1,Daten!$A$59) -> -340
C23: 6 Bekleidung & Körperpflege | G23: 7 Haushalt & Lebensversicherung | K23: 8 Mobilität | O23: 9 Kommunikation & Elektronik | S23: 10 Freizeit & Bildung
C24: ((Icon)) | G24: ((Icon)) | O24: ((Icon)) | S24: ((Icon))
C25: =INDEX(Daten!$D25:$N25,1,Daten!$A$58) -> -130 | G25: =INDEX(Daten!$D27:$N27,1,Daten!$A$58) -> -190 | K25: =INDEX(Daten!$D29:$N29,1,Daten!$A$58) -> -300 | O25: =INDEX(Daten!$D31:$N31,1,Daten!$A$58) -> -150 | S25: =INDEX(Daten!$D33:$N33,1,Daten!$A$58) -> -440
C27: =INDEX(Daten!$D25:$N25,1,Daten!$A$59) -> -200 | G27: =INDEX(Daten!$D27:$N27,1,Daten!$A$59) -> -350 | K27: =INDEX(Daten!$D29:$N29,1,Daten!$A$59) -> -570 | O27: =INDEX(Daten!$D31:$N31,1,Daten!$A$59) -> -190 | S27: =INDEX(Daten!$D33:$N33,1,Daten!$A$59) -> -760

Sheet Daten (hidden)
A1: 9 | E1: 1 | F1: 2 | G1: 3 | H1: 4 | I1: 5 | J1: 6 | K1: 7 | L1: 8 | M1: 9 | N1: 10
B2: Bevölkerungsgruppe | E2: 1 Alleinstehende Person, geringes Einkommen | F2: 2 Alleinstehende Person, mittleres Einkommen | G2: 3 Alleinstehende Person, hohes Einkommen | H2: 4 Paar ohne Kinder, geringes Einkommen | I2: 5 Paar ohne Kinder, mittleres Einkommen | J2: 6 Alleinerziehende Person mit Kindern | K2: 7 Rentnerpaar ohne Kinder, mittleres Renteneinkommen | L2: 8 Paar mit zwei Kindern, geringes Einkommen | M2: 9 Paar mit zwei Kindern, mittleres Einkommen | N2: 10 Paar mit zwei Kindern, hohes Einkommen
A4: A | B4: Primäreinkommen | E4: 1080 | F4: 5960 | G4: 12070 | H4: 4550 | I4: 11010 | J4: 6020 | K4: 950 | L4: 5670 | M4: 11070 | N4: 23840
A6: B | B6: Renten und Sozialleistungen | E6: 1450 | F6: 420 | G6: 380 | H6: 1170 | I6: 530 | J6: 1220 | K6: 6220 | L6: 970 | M6: 880 | N6: 720
A8: C | B8: Transfer- und sporadische Einkommen | E8: 380 | F8: 200 | G8: 470 | H8: 310 | I8: 370 | J8: 1320 | K8: 400 | L8: 280 | M8: 510 | N8: 740
A10: D | B10: Sozialversicherungsbeiträge | E10: -130 | F10: -760 | G10: -1600 | H10: -550 | I10: -1360 | J10: -760 | K10: -40 | L10: -680 | M10: -1410 | N10: -2930
A12: E | B12: Verfügbares Einkommen | E12: =SUM(E4:E10) -> 2780 | F12: =SUM(F4:F10) -> 5820 | G12: 11320 | H12: 5480 | I12: 10550 | J12: =SUM(J4:J10) -> 7800 | K12: 7530 | L12: 6240 | M12: 11050 | N12: 22370
A15: 1 | B15: Steuern | E15: -290 | F15: -640 | G15: -1770 | H15: -820 | I15: -1300 | J15: -590 | K15: -1070 | L15: -470 | M15: -1000 | N15: -3460
A17: 2 | B17: Gesundheit | E17: -520 | F17: -490 | G17: -640 | H17: -920 | I17: -940 | J17: -950 | K17: -1490 | L17: -1090 | M17: -1260 | N17: -1540
A19: 3 | B19: Unterstützungen & Geschenke | E19: -130 | F19: -290 | G19: -1120 | H19: -190 | I19: -250 | J19: -290 | K19: -400 | L19: -110 | M19: -240 | N19: -590
A21: 4 | B21: Wohnen | E21: -1040 | F21: -1240 | G21: -1680 | H21: -1370 | I21: -1620 | J21: -1590 | K21: -1180 | L21: -1410 | M21: -1530 | N21: -2350
A23: 5 | B23: Ernährung | E23: -320 | F23: -340 | G23: -390 | H23: -540 | I23: -620 | J23: -640 | K23: -750 | L23: -720 | M23: -910 | N23: -1110
A25: 6 | B25: Bekleidung & Körperpflege | E25: -130 | F25: -200 | G25: -310 | H25: -260 | I25: -380 | J25: -380 | K25: -300 | L25: -320 | M25: -500 | N25: -860
A27: 7 | B27: Haushalt & Lebensversicherung | E27: -190 | F27: -350 | G27: -790 | H27: -450 | I27: -810 | J27: -440 | K27: -350 | L27: -440 | M27: -890 | N27: -1610
A29: 8 | B29: Mobilität | E29: -300 | F29: -570 | G29: -870 | H29: -740 | I29: -1160 | J29: -670 | K29: -760 | L29: -770 | M29: -1210 | N29: -1800
A31: 9 | B31: Kommunikation & Elektronik | E31: -150 | F31: -190 | G31: -240 | H31: -230 | I31: -280 | J31: -290 | K31: -200 | L31: -260 | M31: -310 | N31: -400
A33: 10 | B33: Freizeit & Bildung | E33: -440 | F33: -760 | G33: -1290 | H33: -880 | I33: -1360 | J33: -1080 | K33: -1220 | L33: -830 | M33: -1570 | N33: -3380
A36: F | B36: Restbetrag | E36: =SUM(E12:E33) -> -730 | F36: =SUM(F12:F33) -> 750 | G36: 2220 | H36: -920 | I36: 1830 | J36: 880 | K36: -190 | L36: =SUM(L12:L33) -> -180 | M36: 1630 | N36: 5270
A38: X1 | B38: Einzel / Paar | E38: Einzel | F38: Einzel | G38: Einzel | H38: Paar | I38: Paar | J38: Einzel | K38: Paar | L38: Paar | M38: Paar | N38: Paar
A39: X2 | B39: Kinder | E39: nein | F39: nein | G39: nein | H39: nein | I39: nein | J39: ja | K39: nein | L39: ja | M39: ja | N39: ja
A40: X3 | B40: Alter | E40: unter 65 Jahren | F40: unter 65 Jahren | G40: unter 65 Jahren | H40: unter 65 Jahren | I40: unter 65 Jahren | J40: - | K40: ab 65 Jahren | L40: - | M40: - | N40: -
A41: X4 | B41: Einkommen | E41: unterstes Quintil | F41: mittleres Quintil | G41: oberstes Quintil | H41: unterstes Quintil | I41: mittleres Quintil | J41: Durchschnitt | K41: mittleres Quintil | L41: unterstes Quintil | M41: mittleres Quintil | N41: oberstes Quintil
B44: =E2 -> 1 Alleinstehende Person, geringes Einkommen
B45: =F2 -> 2 Alleinstehende Person, mittleres Einkommen
B46: =G2 -> 3 Alleinstehende Person, hohes Einkommen
B47: =H2 -> 4 Paar ohne Kinder, geringes Einkommen
B48: =I2 -> 5 Paar ohne Kinder, mittleres Einkommen
B49: =J2 -> 6 Alleinerziehende Person mit Kindern
B50: =K2 -> 7 Rentnerpaar ohne Kinder, mittleres Renteneinkommen
B51: =L2 -> 8 Paar mit zwei Kindern, geringes Einkommen
B52: =M2 -> 9 Paar mit zwei Kindern, mittleres Einkommen
B53: =N2 -> 10 Paar mit zwei Kindern, hohes Einkommen
A56: 1 | B56: Cell Link Monatliche Haushaltsbudgets
A58: 2 | B58: Cell Link Haushaltstypen im Vergleich 1
A59: 3 | B59: Cell Link Haushaltstypen im Vergleich 1

Sheet Monatliches Haushaltsbudget_p
A1: Monatliches Haushaltsbudget
D3: Vorschlag
D4: Lernende
A7: Einnahmen | C7: =Daten!$B$12 -> Verfügbares Einkommen
B8: =Daten!$A13 -> 0
B9: =Daten!$A9 -> 0
A10: Ausgaben | B10: =Daten!$A15 -> 1 | C10: =Daten!$B15 -> Steuern | E10: =IF($D$7,SUM(D10)/$D$7,0) -> 0 | F10: =ABS(#REF!-E10) ->  | G10: Steuern für Bund, Kanton und Gemeinde, amtliche Gebühren
B11: =Daten!$A16 -> 0 | C11: =Daten!$B16 -> 0
B12: =Daten!$A17 -> 2 | C12: =Daten!$B17 -> Gesundheit | E12: =IF($D$7,SUM(D12)/$D$7,0) -> 0 | F12: =ABS(#REF!-E12) ->  | G12: Krankenkassenprämien, Arztbesuche, Medikamente
B13: =Daten!$A18 -> 0 | C13: =Daten!$B18 -> 0
B14: =Daten!$A19 -> 3 | C14: =Daten!$B19 -> Unterstützungen & Geschenke | E14: =IF($D$7,SUM(D14)/$D$7,0) -> 0 | F14: =ABS(#REF!-E14) ->  | G14: Einladungen, Spenden, Alimente, Unterstützungsbeiträge
B15: =Daten!$A20 -> 0 | C15: =Daten!$B20 -> 0
B16: =Daten!$A21 -> 4 | C16: =Daten!$B21 -> Wohnen | E16: =IF($D$7,SUM(D16)/$D$7,0) -> 0 | F16: =ABS(#REF!-E16) ->  | G16: Wohnung, Energie
B17: =Daten!$A22 -> 0 | C17: =Daten!$B22 -> 0
B18: =Daten!$A23 -> 5 | C18: =Daten!$B23 -> Ernährung | E18: =IF($D$7,SUM(D18)/$D$7,0) -> 0 | F18: =ABS(#REF!-E18) ->  | G18: Essen, Trinken
B19: =Daten!$A24 -> 0 | C19: =Daten!$B24 -> 0
B20: =Daten!$A25 -> 6 | C20: =Daten!$B25 -> Bekleidung & Körperpflege | E20: =IF($D$7,SUM(D20)/$D$7,0) -> 0 | F20: =ABS(#REF!-E20) ->  | G20: Kleidung, Schuhe, Hygieneprodukte, Coiffeur
B21: =Daten!$A26 -> 0 | C21: =Daten!$B26 -> 0
B22: =Daten!$A27 -> 7 | C22: =Daten!$B27 -> Haushalt & Lebensversicherung | E22: =IF($D$7,SUM(D22)/$D$7,0) -> 0 | F22: =ABS(#REF!-E22) ->  | G22: Einrichtung, Haushaltsführung, Versicherungen
B23: =Daten!$A28 -> 0 | C23: =Daten!$B28 -> 0
B24: =Daten!$A29 -> 8 | C24: =Daten!$B29 -> Mobilität | E24: =IF($D$7,SUM(D24)/$D$7,0) -> 0 | F24: =ABS(#REF!-E24) ->  | G24: Individueller und öffentlicher Verkehr
B25: =Daten!$A30 -> 0 | C25: =Daten!$B30 -> 0
B26: =Daten!$A31 -> 9 | C26: =Daten!$B31 -> Kommunikation & Elektronik | E26: =IF($D$7,SUM(D26)/$D$7,0) -> 0 | F26: =ABS(#REF!-E26) ->  | G26: Telefonie, Internet, TV, Computer
B27: =Daten!$A32 -> 0 | C27: =Daten!$B32 -> 0
B28: =Daten!$A33 -> 10 | C28: =Daten!$B33 -> Freizeit & Bildung | E28: =IF($D$7,SUM(D28)/$D$7,0) -> 0 | F28: =ABS(#REF!-E28) ->  | G28: Ausgang, Ferien, Hobbys, Bildung
B29: =Daten!$A34 -> 0
B30: =Daten!$A35 -> 0
A31: Restbetrag | C31: Sparen/Schulden | D31: =D7-SUM(D10:D28) -> 0 | E31: =IF($D$7,SUM(D31)/$D$7,0) -> 0 | F31: =ABS(#REF!-E31) -> 

Sheet Haushaltsbudgets im Vergleich_p
D1: 1 | E1: 2 | F1: 3 | G1: 4 | H1: 5 | I1: 6 | J1: 7 | K1: 8 | L1: 9 | M1: 10
D2: Alleinstehende Person, geringes Einkommen | E2: Alleinstehende Person, mittleres Einkommen | F2: Alleinstehende Person, hohes Einkommen | G2: Paar ohne Kinder, geringes Einkommen | H2: Paar ohne Kinder, mittleres Einkommen | I2: Alleinerziehende Person mit Kindern | J2: Rentenpaar ohne Kinder, mittleres Renten-einkommen | K2: Paar mit zwei Kindern, geringes Einkommen | L2: Paar mit zwei Kindern, mittleres Einkommen | M2: Paar mit zwei Kindern, hohes Einkommen
B4: Primäreinkommen | D4: =Daten!E4 -> 1080 | E4: =Daten!F4 -> 5960 | F4: =Daten!G4 -> 12070 | G4: =Daten!H4 -> 4550 | H4: =Daten!I4 -> 11010 | I4: =Daten!J4 -> 6020 | J4: =Daten!K4 -> 950 | K4: =Daten!L4 -> 5670 | L4: =Daten!M4 -> 11070 | M4: =Daten!N4 -> 23840
D5: =Daten!E5 -> 0
B6: Renten und Sozialleistungen | D6: =Daten!E6 -> 1450 | E6: =Daten!F6 -> 420 | F6: =Daten!G6 -> 380 | G6: =Daten!H6 -> 1170 | H6: =Daten!I6 -> 530 | I6: =Daten!J6 -> 1220 | J6: =Daten!K6 -> 6220 | K6: =Daten!L6 -> 970 | L6: =Daten!M6 -> 880 | M6: =Daten!N6 -> 720
D7: =Daten!E7 -> 0
B8: Transfer- u. sporadische Einkommen | D8: =Daten!E8 -> 380 | E8: =Daten!F8 -> 200 | F8: =Daten!G8 -> 470 | G8: =Daten!H8 -> 310 | H8: =Daten!I8 -> 370 | I8: =Daten!J8 -> 1320 | J8: =Daten!K8 -> 400 | K8: =Daten!L8 -> 280 | L8: =Daten!M8 -> 510 | M8: =Daten!N8 -> 740
D9: =Daten!E9 -> 0
B10: Sozialversicherungsbeiträge | D10: =Daten!E10 -> -130 | E10: =Daten!F10 -> -760 | F10: =Daten!G10 -> -1600 | G10: =Daten!H10 -> -550 | H10: =Daten!I10 -> -1360 | I10: =Daten!J10 -> -760 | J10: =Daten!K10 -> -40 | K10: =Daten!L10 -> -680 | L10: =Daten!M10 -> -1410 | M10: =Daten!N10 -> -2930
B12: Verfügbares Einkommen | D12: =Daten!E12 -> 2780 | E12: =Daten!F12 -> 5820 | F12: =Daten!G12 -> 11320 | G12: =Daten!H12 -> 5480 | H12: =Daten!I12 -> 10550 | I12: =Daten!J12 -> 7800 | J12: =Daten!K12 -> 7530 | K12: =Daten!L12 -> 6240 | L12: =Daten!M12 -> 11050 | M12: =Daten!N12 -> 22370
A15: 1 | B15: Steuern | D15: =Daten!E15 -> -290 | E15: =Daten!F15 -> -640 | F15: =Daten!G15 -> -1770 | G15: =Daten!H15 -> -820 | H15: =Daten!I15 -> -1300 | I15: =Daten!J15 -> -590 | J15: =Daten!K15 -> -1070 | K15: =Daten!L15 -> -470 | L15: =Daten!M15 -> -1000 | M15: =Daten!N15 -> -3460
D16: =Daten!E16 -> 0 | E16: =Daten!F16 -> 0 | F16: =Daten!G16 -> 0 | G16: =Daten!H16 -> 0 | H16: =Daten!I16 -> 0 | I16: =Daten!J16 -> 0 | J16: =Daten!K16 -> 0 | K16: =Daten!L16 -> 0 | L16: =Daten!M16 -> 0 | M16: =Daten!N16 -> 0
A17: 2 | B17: Gesundheit | D17: =Daten!E17 -> -520 | E17: =Daten!F17 -> -490 | F17: =Daten!G17 -> -640 | G17: =Daten!H17 -> -920 | H17: =Daten!I17 -> -940 | I17: =Daten!J17 -> -950 | J17: =Daten!K17 -> -1490 | K17: =Daten!L17 -> -1090 | L17: =Daten!M17 -> -1260 | M17: =Daten!N17 -> -1540
D18: =Daten!E18 -> 0 | E18: =Daten!F18 -> 0 | F18: =Daten!G18 -> 0 | G18: =Daten!H18 -> 0 | H18: =Daten!I18 -> 0 | I18: =Daten!J18 -> 0 | J18: =Daten!K18 -> 0 | K18: =Daten!L18 -> 0 | L18: =Daten!M18 -> 0 | M18: =Daten!N18 -> 0
A19: 3 | B19: Unterstützungen & Geschenke | D19: =Daten!E19 -> -130 | E19: =Daten!F19 -> -290 | F19: =Daten!G19 -> -1120 | G19: =Daten!H19 -> -190 | H19: =Daten!I19 -> -250 | I19: =Daten!J19 -> -290 | J19: =Daten!K19 -> -400 | K19: =Daten!L19 -> -110 | L19: =Daten!M19 -> -240 | M19: =Daten!N19 -> -590
D20: =Daten!E20 -> 0 | E20: =Daten!F20 -> 0 | F20: =Daten!G20 -> 0 | G20: =Daten!H20 -> 0 | H20: =Daten!I20 -> 0 | I20: =Daten!J20 -> 0 | J20: =Daten!K20 -> 0 | K20: =Daten!L20 -> 0 | L20: =Daten!M20 -> 0 | M20: =Daten!N20 -> 0
A21: 4 | B21: Wohnen | D21: =Daten!E21 -> -1040 | E21: =Daten!F21 -> -1240 | F21: =Daten!G21 -> -1680 | G21: =Daten!H21 -> -1370 | H21: =Daten!I21 -> -1620 | I21: =Daten!J21 -> -1590 | J21: =Daten!K21 -> -1180 | K21: =Daten!L21 -> -1410 | L21: =Daten!M21 -> -1530 | M21: =Daten!N21 -> -2350
D22: =Daten!E22 -> 0 | E22: =Daten!F22 -> 0 | F22: =Daten!G22 -> 0 | G22: =Daten!H22 -> 0 | H22: =Daten!I22 -> 0 | I22: =Daten!J22 -> 0 | J22: =Daten!K22 -> 0 | K22: =Daten!L22 -> 0 | L22: =Daten!M22 -> 0 | M22: =Daten!N22 -> 0
A23: 5 | B23: Ernährung | D23: =Daten!E23 -> -320 | E23: =Daten!F23 -> -340 | F23: =Daten!G23 -> -390 | G23: =Daten!H23 -> -540 | H23: =Daten!I23 -> -620 | I23: =Daten!J23 -> -640 | J23: =Daten!K23 -> -750 | K23: =Daten!L23 -> -720 | L23: =Daten!M23 -> -910 | M23: =Daten!N23 -> -1110
D24: =Daten!E24 -> 0 | E24: =Daten!F24 -> 0 | F24: =Daten!G24 -> 0 | G24: =Daten!H24 -> 0 | H24: =Daten!I24 -> 0 | I24: =Daten!J24 -> 0 | J24: =Daten!K24 -> 0 | K24: =Daten!L24 -> 0 | L24: =Daten!M24 -> 0 | M24: =Daten!N24 -> 0
A25: 6 | B25: Bekleidung & Körperpflege | D25: =Daten!E25 -> -130 | E25: =Daten!F25 -> -200 | F25: =Daten!G25 -> -310 | G25: =Daten!H25 -> -260 | H25: =Daten!I25 -> -380 | I25: =Daten!J25 -> -380 | J25: =Daten!K25 -> -300 | K25: =Daten!L25 -> -320 | L25: =Daten!M25 -> -500 | M25: =Daten!N25 -> -860
D26: =Daten!E26 -> 0 | E26: =Daten!F26 -> 0 | F26: =Daten!G26 -> 0 | G26: =Daten!H26 -> 0 | H26: =Daten!I26 -> 0 | I26: =Daten!J26 -> 0 | J26: =Daten!K26 -> 0 | K26: =Daten!L26 -> 0 | L26: =Daten!M26 -> 0 | M26: =Daten!N26 -> 0
A27: 7 | B27: Haushalt & Lebensversicherung | D27: =Daten!E27 -> -190 | E27: =Daten!F27 -> -350 | F27: =Daten!G27 -> -790 | G27: =Daten!H27 -> -450 | H27: =Daten!I27 -> -810 | I27: =Daten!J27 -> -440 | J27: =Daten!K27 -> -350 | K27: =Daten!L27 -> -440 | L27: =Daten!M27 -> -890 | M27: =Daten!N27 -> -1610
D28: =Daten!E28 -> 0 | E28: =Daten!F28 -> 0 | F28: =Daten!G28 -> 0 | G28: =Daten!H28 -> 0 | H28: =Daten!I28 -> 0 | I28: =Daten!J28 -> 0 | J28: =Daten!K28 -> 0 | K28: =Daten!L28 -> 0 | L28: =Daten!M28 -> 0 | M28: =Daten!N28 -> 0
A29: 8 | B29: Mobilität | D29: =Daten!E29 -> -300 | E29: =Daten!F29 -> -570 | F29: =Daten!G29 -> -870 | G29: =Daten!H29 -> -740 | H29: =Daten!I29 -> -1160 | I29: =Daten!J29 -> -670 | J29: =Daten!K29 -> -760 | K29: =Daten!L29 -> -770 | L29: =Daten!M29 -> -1210 | M29: =Daten!N29 -> -1800
D30: =Daten!E30 -> 0 | E30: =Daten!F30 -> 0 | F30: =Daten!G30 -> 0 | G30: =Daten!H30 -> 0 | H30: =Daten!I30 -> 0 | I30: =Daten!J30 -> 0 | J30: =Daten!K30 -> 0 | K30: =Daten!L30 -> 0 | L30: =Daten!M30 -> 0 | M30: =Daten!N30 -> 0
A31: 9 | B31: Kommunikation & Elektronik | D31: =Daten!E31 -> -150 | E31: =Daten!F31 -> -190 | F31: =Daten!G31 -> -240 | G31: =Daten!H31 -> -230 | H31: =Daten!I31 -> -280 | I31: =Daten!J31 -> -290 | J31: =Daten!K31 -> -200 | K31: =Daten!L31 -> -260 | L31: =Daten!M31 -> -310 | M31: =Daten!N31 -> -400
D32: =Daten!E32 -> 0 | E32: =Daten!F32 -> 0 | F32: =Daten!G32 -> 0 | G32: =Daten!H32 -> 0 | H32: =Daten!I32 -> 0 | I32: =Daten!J32 -> 0 | J32: =Daten!K32 -> 0 | K32: =Daten!L32 -> 0 | L32: =Daten!M32 -> 0 | M32: =Daten!N32 -> 0
A33: 10 | B33: Freizeit & Bildung | D33: =Daten!E33 -> -440 | E33: =Daten!F33 -> -760 | F33: =Daten!G33 -> -1290 | G33: =Daten!H33 -> -880 | H33: =Daten!I33 -> -1360 | I33: =Daten!J33 -> -1080 | J33: =Daten!K33 -> -1220 | K33: =Daten!L33 -> -830 | L33: =Daten!M33 -> -1570 | M33: =Daten!N33 -> -3380
B36: Restbetrag | D36: =Daten!E36 -> -730 | E36: =Daten!F36 -> 750 | F36: =Daten!G36 -> 2220 | G36: =Daten!H36 -> -920 | H36: =Daten!I36 -> 1830 | I36: =Daten!J36 -> 880 | J36: =Daten!K36 -> -190 | K36: =Daten!L36 -> -180 | L36: =Daten!M36 -> 1630 | M36: =Daten!N36 -> 5270
